bitfinex/quotes_SOLUSD_20240708
["timestamp","ask_amount","ask_price","bid_price","bid_amount"]
[1720418541266,100.0,133.19,133.17,20.0]
[1720418541439,100.0,133.17,133.14,444.52721885]
[1720418541641,100.0,133.17,133.14,54.32721885]
[1720418541859,100.0,133.17,133.14,47.7344512]
[1720418542162,100.0,133.19,133.14,47.7344512]
[1720418542959,100.0,133.22,133.16,37.85]
[1720418543150,100.0,133.22,133.17,20.0]
[1720418543655,100.0,133.2,133.17,20.0]
[1720418544636,100.0,133.18,133.17,20.0]
[1720418544867,100.0,133.18,133.15,20.0]
[1720418546848,22.9656,133.24,133.15,20.0]
[1720418547055,16.5337,133.24,133.18,37.85]
[1720418547264,100.0,133.26,133.2,37.85]
[1720418547440,100.0,133.26,133.21,20.0]
[1720418547641,15.7875,133.27,133.22,37.85]
[1720418547967,115.7875,133.27,133.23,20.0]
[1720418548568,100.0,133.25,133.23,20.0]
[1720418549159,100.0,133.23,133.21,20.0]
[1720418549847,100.0,133.23,133.19,20.0]
[1720418550547,100.0,133.23,133.18,37.85]
[1720418550743,100.0,133.23,133.19,20.0]
[1720418551965,100.0,133.21,133.18,37.85]
[1720418552150,100.0,133.21,133.16,37.85]
[1720418553041,100.0,133.18,133.16,37.85]
[1720418553257,100.0,133.18,133.14,38.7064901]
[1720418555564,100.0,133.16,133.15,20.0]
[1720418555764,115.2957,133.2,133.15,20.0]
[1720418555970,100.0,133.18,133.15,20.0]
[1720418556867,115.2957,133.2,133.15,20.0]
[1720418557273,100.0,133.17,133.16,37.85]
[1720418557474,100.0,133.17,133.16,57.85]
[1720418557777,100.0,133.17,133.16,20.0]
[1720418558250,100.0,133.17,133.15,20.0]
[1720418559851,100.0,133.15,133.14,0.8564901]
[1720418563161,100.0,133.16,133.14,0.8564901]
[1720418571184,22.5643,133.15,133.14,0.8564901]
[1720418571365,22.7343,133.15,133.14,0.8564901]
[1720418571688,100.0,133.12,133.11,0.1]
[1720418572257,100.17,133.12,133.11,0.1]
[1720418572659,100.0,133.06,133.02,37.85]
[1720418572969,100.0,133.04,133.01,0.9564901]
[1720418573169,100.0,133.04,133.01,44.81023458]
[1720418573581,100.0,133.04,133.01,6.96023458]
[1720418574389,100.0,133.02,133.01,0.9564901]
[1720418577207,100.0,133.04,133.01,0.9564901]
[1720418578401,100.0,133.02,133.01,0.9564901]
[1720418581884,100.17,133.02,133.01,0.9564901]
[1720418583512,100.0,133.02,133.01,0.9564901]
[1720418583987,100.0,133.07,133.01,38.8064901]
[1720418584178,100.0,133.09,133.02,20.0]
[1720418584379,100.0,133.07,133.02,20.0]
[1720418584682,100.0,133.05,133.02,20.0]
[1720418585374,100.0,133.07,133.02,20.0]
[1720418585576,100.0,133.09,133.03,37.85]
[1720418585781,100.0,133.09,133.07,37.85]
[1720418586184,100.0,133.13,133.08,20.0]
[1720418586419,100.0,133.13,133.09,37.85]
[1720418586590,100.0,133.13,133.1,20.0]
[1720418586916,100.0,133.13,133.08,20.0]
[1720418587288,100.0,133.16,133.07,0.17]
[1720418587491,100.0,133.16,133.08,0.17]
[1720418588105,100.0,133.14,133.07,0.17]
[1720418588806,100.0,133.1,133.06,20.0]
[1720418589020,100.0,133.08,133.05,20.0]
[1720418589217,100.0,133.08,133.04,390.2]
[1720418589828,100.0,133.08,133.01,56.15084664]
[1720418590135,100.0,133.11,133.01,49.9191901]
[1720418590325,100.0,133.17,133.05,42.79]
[1720418590512,100.0,133.15,133.05,42.79]
[1720418591230,100.0,133.15,133.06,20.0]
[1720418591431,100.0,133.15,133.07,6.1506]
[1720418591742,100.0,133.15,133.08,20.17]
[1720418592030,100.0,133.13,133.08,20.17]
[1720418592530,6.2317,133.18,133.08,20.0]
[1720418592531,100.0,133.11,133.08,20.0]
[1720418592703,100.0,133.13,133.06,20.0]
[1720418593130,100.0,133.13,133.05,0.17]
[1720418593333,100.0,133.11,133.04,20.0]
[1720418593845,100.0,133.09,133.04,20.0]
[1720418594207,100.0,133.11,133.04,20.0]
[1720418594537,100.0,133.13,133.04,20.0]
[1720418594707,100.0,133.11,133.05,0.17]
[1720418594908,100.0,133.09,133.04,20.0]
[1720418595224,100.0,133.09,133.03,27.38448359]
[1720418595946,15.0,133.17,133.03,27.38448359]
[1720418595947,100.0,133.07,133.03,27.38448359]
[1720418596124,100.0,133.07,133.03,12.28378359]
[1720418596639,100.0,133.09,133.03,12.28378359]
[1720418597456,100.0,133.09,133.04,20.0]
[1720418598147,100.0,133.07,133.04,20.0]
[1720418598539,100.0,133.07,133.02,20.0]
[1720418599141,100.0,133.05,133.02,20.0]
[1720418599524,100.0,133.07,133.02,20.0]
[1720418599919,100.0,133.05,133.02,20.0]
[1720418604554,100.0,133.07,133.02,20.0]
[1720418604938,100.0,133.09,133.02,20.0]
[1720418605248,100.0,133.09,133.03,0.17]
[1720418605548,100.0,133.12,133.03,0.17]
[1720418606343,100.0,133.12,133.05,42.79]
[1720418606648,100.0,133.17,133.06,20.17]
[1720418607445,116.1974,133.2,133.09,42.79]
[1720418607649,100.0,133.2,133.1,35.6856]
[1720418607854,100.0,133.17,133.1,35.6856]
[1720418608260,100.0,133.19,133.1,35.6856]
[1720418608657,100.0,133.19,133.11,6.0789]
[1720418608848,100.0,133.19,133.12,20.17]
[1720418609228,100.0,133.23,133.13,42.79]
[1720418609429,100.0,133.23,133.14,20.17]
[1720418609754,100.0,133.19,133.14,20.17]
[1720418611460,100.0,133.17,133.14,20.0]
[1720418611956,100.0,133.19,133.12,20.0]
[1720418612157,100.0,133.19,133.13,0.17]
[1720418613358,15.5134,133.24,133.12,20.0]
[1720418613359,100.0,133.17,133.12,20.0]
[1720418613731,100.0,133.17,133.11,12.19955752]
[1720418614063,100.0,133.15,133.11,12.02955752]
[1720418615252,100.0,133.15,133.12,20.0]
[1720418615446,100.0,133.13,133.11,5.95065752]
[1720418615653,100.0,133.13,133.07,58.0214611]
[1720418615832,100.0,133.13,133.08,0.17]
[1720418617054,100.0,133.15,133.08,0.17]
[1720418617265,100.0,133.15,133.08,20.17]
[1720418619162,100.0,133.17,133.08,20.17]
[1720418619459,100.0,133.15,133.08,20.17]
[1720418620457,100.0,133.17,133.08,20.17]
[1720418620664,100.0,133.17,133.11,38.03]
[1720418620837,100.0,133.17,133.12,20.0]
[1720418622170,100.0,133.15,133.12,20.0]
[1720418626239,100.0,133.15,133.11,38.03]
[1720418626240,100.0,133.13,133.07,12.32749969]
[1720418626566,100.0,133.13,133.08,38.03]
[1720418626765,100.0,133.13,133.1,38.03]
[1720418627881,100.0,133.13,133.11,20.0]
[1720418628685,15.5985,133.17,133.07,6.12399969]
[1720418628686,100.0,133.11,133.07,6.12399969]
[1720418628890,100.0,133.11,133.04,12.61975654]
[1720418629177,100.0,133.11,133.06,38.03]
[1720418630353,100.0,133.15,133.08,38.03]
[1720418630585,100.0,133.15,133.1,38.03]
[1720418630761,100.0,133.15,133.11,20.0]
[1720418631259,100.0,133.13,133.11,20.0]
[1720418632276,100.0,133.15,133.12,38.03]
[1720418632482,100.0,133.15,133.13,20.0]
[1720418633065,100.0,133.18,133.13,20.0]
[1720418634169,100.0,133.16,133.13,20.0]
[1720418634375,16.2096,133.21,133.13,20.0]
[1720418634376,100.0,133.14,133.13,20.0]
[1720418635081,100.0,133.16,133.13,20.0]
[1720418635257,100.0,133.16,133.14,38.03]
[1720418635466,100.0,133.16,133.15,20.0]
[1720418635980,100.0,133.2,133.15,20.0]
[1720418636890,100.0,133.22,133.16,38.03]
[1720418637183,100.0,133.22,133.17,20.0]
[1720418638091,100.0,133.2,133.17,20.0]
[1720418638380,100.0,133.18,133.17,20.0]
[1720418639164,100.0,133.2,133.17,20.0]
[1720418640360,100.0,133.22,133.17,20.0]
[1720418640586,100.0,133.22,133.18,38.03]
[1720418640795,100.0,133.22,133.19,20.0]
[1720418641690,100.0,133.2,133.19,20.0]
[1720418641892,100.0,133.22,133.19,20.0]
[1720418643598,100.0,133.2,133.19,20.0]
[1720418643805,100.0,133.2,133.17,20.0]
[1720418644102,100.0,133.18,133.13,21.5871]
[1720418644286,100.0,133.18,133.13,65.57030749]
[1720418644473,100.0,133.16,133.13,5.95320749]
[1720418644673,100.0,133.16,133.13,38.03]
[1720418645397,100.0,133.16,133.14,20.0]
[1720418645901,100.0,133.14,133.13,38.03]
[1720418646265,100.0,133.16,133.13,38.03]
[1720418647393,100.0,133.16,133.14,20.0]
[1720418651894,100.0,133.16,133.11,38.03]
[1720418651895,100.0,133.14,133.12,20.0]
[1720418652395,100.0,133.16,133.12,20.0]
[1720418652789,100.0,133.16,133.13,38.03]
[1720418652992,100.0,133.16,133.14,20.0]
[1720418653387,100.0,133.18,133.14,20.0]
[1720418653886,100.0,133.2,133.15,38.03]
[1720418654087,100.0,133.2,133.16,20.0]
[1720418655704,100.0,133.18,133.16,20.0]
[1720418656487,100.0,133.18,133.1,412.81789442]
[1720418656696,16.0183,133.23,133.13,38.03]
[1720418656697,100.0,133.16,133.13,38.03]
[1720418657085,100.0,133.16,133.1,412.81789442]
[1720418657295,100.0,133.16,133.12,38.03]
[1720418658094,100.0,133.18,133.12,38.03]
[1720418658590,100.0,133.18,133.14,38.03]
[1720418658795,100.0,133.18,133.15,20.0]
[1720418659615,100.0,133.16,133.15,20.0]
[1720418661929,100.0,133.13,133.1,6.10989442]
[1720418662420,100.0,133.13,133.09,38.03]
[1720418662723,100.0,133.11,133.07,428.23]
[1720418662911,100.0,133.11,133.07,38.03]
[1720418663687,100.0,133.11,133.07,43.95501075]
[1720418663890,100.0,133.09,133.07,43.95501075]
[1720418664090,16.5032,133.16,133.02,420.36695152]
[1720418664091,100.0,133.07,133.02,420.36695152]
[1720418664399,100.0,133.07,133.04,38.03]
[1720418665307,100.0,133.07,133.02,15.02541041]
[1720418665308,100.0,133.04,133.02,15.02541041]
[1720418665506,115.11,133.11,133.01,0.9564901]
[1720418665814,115.11,133.11,133.03,38.03]
[1720418666129,100.0,133.09,133.03,38.03]
[1720418666718,100.0,133.09,133.04,20.0]
[1720418667205,115.11,133.11,133.04,20.0]
[1720418667529,115.11,133.11,133.05,38.03]
[1720418667729,115.11,133.11,133.06,20.0]
[1720418667937,100.0,133.05,133.01,0.9564901]
[1720418668122,100.0,133.03,133.01,0.9564901]
[1720418669233,100.0,133.03,133.01,20.9564901]
[1720418669733,100.0,133.07,133.02,38.03]
[1720418669912,100.0,133.07,133.03,20.0]
[1720418672911,100.0,133.05,133.03,20.0]
[1720418673613,100.0,133.05,133.01,20.9564901]
[1720418676816,100.0,133.03,133.01,20.9564901]
[1720418678116,100.0,133.05,133.01,20.9564901]
[1720418678527,100.0,133.03,133.01,20.9564901]
[1720418681224,100.0,133.03,133.01,0.9564901]
[1720418687248,0.17,133.02,133.01,0.9564901]
[1720418688455,100.0,132.96,132.92,38.03]
[1720418688653,100.0,132.94,132.92,38.03]
[1720418688945,100.0,132.94,132.92,5.9749536]
[1720418689148,100.0,132.94,132.91,0.1]
[1720418689336,100.0,132.92,132.91,0.1]
[1720418691936,100.0,132.94,132.91,0.1]
[1720418692215,100.0,132.92,132.91,0.1]
[1720418700641,100.0,132.96,132.91,0.1]
[1720418700844,100.0,132.96,132.91,22.2703]
[1720418701024,100.0,132.99,132.92,58.03]
[1720418701450,100.0,133.01,132.94,38.03]
[1720418701832,100.0,133.01,132.96,38.03]
[1720418702026,100.0,133.02,132.98,38.03]
[1720418702239,100.0,133.02,132.99,20.0]
[1720418702634,100.0,133.04,132.99,20.0]
[1720418703145,100.0,133.06,132.99,20.0]
[1720418703363,15.8097,133.07,132.99,20.0]
[1720418703364,100.0,133.04,132.99,20.0]
[1720418703950,100.0,133.04,133.0,0.17]
[1720418704149,100.0,133.04,132.99,20.0]
[1720418704846,15.8097,133.07,132.99,20.0]
[1720418704847,100.0,133.02,132.99,20.0]
[1720418705570,100.0,133.06,133.0,38.03]
[1720418705757,100.0,133.06,133.02,38.03]
[1720418705959,100.0,133.05,133.03,20.0]
[1720418706569,15.9246,133.1,133.0,38.03]
[1720418706570,100.0,133.03,133.0,38.03]
[1720418706735,100.0,133.05,133.01,20.0]
[1720418706934,100.0,133.07,133.01,20.0]
[1720418707132,100.0,133.04,133.01,20.0]
[1720418707330,100.0,133.02,132.98,396.2174252]
[1720418707553,100.0,133.02,132.93,9.0279611]
[1720418707554,100.0,133.0,132.93,32.0249611]
[1720418707764,100.0,133.02,132.96,38.03]
[1720418708060,100.0,133.04,133.0,38.03]
[1720418708734,100.0,133.04,133.01,20.0]
[1720418708944,100.0,133.02,133.01,20.0]
[1720418709159,100.0,133.02,132.99,20.0]
[1720418709459,100.0,133.02,133.0,38.03]
[1720418709872,100.0,133.02,132.98,38.03]
[1720418710380,100.0,133.0,132.93,44.34548588]
[1720418710539,100.0,132.98,132.93,44.34548588]
[1720418710739,100.0,132.98,132.93,6.08886824]
[1720418710942,100.0,132.98,132.91,390.3]
[1720418710943,100.0,132.95,132.92,38.03]
[1720418711139,100.0,132.98,132.92,38.03]
[1720418711868,100.0,132.98,132.94,38.03]
[1720418712237,100.0,132.96,132.95,20.0]
[1720418712441,100.0,132.96,132.93,20.0]
[1720418712872,100.0,132.96,132.92,20.0]
[1720418713277,100.0,132.94,132.92,20.0]
[1720418713443,100.0,132.94,132.91,6.01117043]
[1720418713444,100.0,132.94,132.91,0.1]
[1720418713642,100.0,132.92,132.91,0.1]
[1720418714061,100.0,132.94,132.91,0.1]
[1720418714464,100.0,132.98,132.91,0.1]
[1720418714675,100.0,132.96,132.91,0.1]
[1720418714982,100.0,132.94,132.91,0.1]
[1720418715178,100.0,132.94,132.91,20.1]
[1720418715351,100.0,132.96,132.92,20.0]
[1720418715550,6.2598,133.01,132.92,20.0]
[1720418715551,100.0,132.94,132.92,20.0]
[1720418715751,100.0,132.96,132.92,20.0]
[1720418715968,100.0,132.94,132.91,20.1]
[1720418716160,100.0,132.92,132.91,20.1]
[1720418716573,100.0,132.94,132.91,20.1]
[1720418718472,100.0,132.92,132.91,20.1]
[1720418719546,100.0,132.92,132.91,0.1]
[1720418719747,100.0,132.94,132.91,0.1]
[1720418720168,100.0,132.92,132.91,0.1]
[1720418723178,100.0,132.96,132.91,0.1]
[1720418724970,100.0,132.92,132.91,0.1]
[1720418727272,100.0,132.94,132.91,0.1]
[1720418728073,100.0,132.92,132.91,0.1]
[1720418728850,100.0,132.94,132.91,0.1]
[1720418729072,100.0,132.92,132.91,0.1]
[1720418734066,100.17,132.92,132.91,0.1]
[1720418738171,100.0,132.89,132.88,0.8564901]
[1720418738371,100.17,132.89,132.88,0.8564901]
[1720418739697,100.0,132.89,132.88,0.8564901]
[1720418740392,100.17,132.89,132.88,0.8564901]
[1720418746996,100.0,132.82,132.81,0.1]
[1720418748577,100.0,132.83,132.81,0.1]
[1720418748784,100.0,132.85,132.81,0.1]
[1720418748999,100.0,132.83,132.81,20.1]
[1720418749782,100.0,132.85,132.81,20.1]
[1720418750179,100.0,132.89,132.82,38.19]
[1720418750375,22.2822,132.91,132.82,38.19]
[1720418750376,100.0,132.91,132.83,26.6566]
[1720418750594,100.0,132.89,132.84,38.19]
[1720418750779,100.0,132.87,132.85,20.0]
[1720418751912,100.0,132.89,132.85,20.0]
[1720418752494,100.0,132.91,132.86,38.19]
[1720418752698,100.0,132.88,132.87,20.0]
[1720418753416,22.7271,132.95,132.84,20.0]
[1720418753706,100.0,132.89,132.84,20.0]
[1720418753880,100.0,132.87,132.84,20.0]
[1720418754084,100.0,132.85,132.8,390.2]
[1720418754282,100.0,132.85,132.81,38.29]
[1720418754591,100.0,132.85,132.81,0.1]
[1720418754788,100.0,132.85,132.81,38.29]
[1720418755004,100.0,132.82,132.81,0.1]
[1720418755507,100.0,132.85,132.81,0.1]
[1720418756322,100.0,132.85,132.81,38.29]
[1720418756518,100.0,132.85,132.82,20.0]
[1720418756831,100.0,132.83,132.82,20.0]
[1720418756994,100.0,132.85,132.82,20.0]
[1720418757716,100.0,132.83,132.82,20.0]
[1720418758498,100.0,132.83,132.81,0.1]
[1720418759006,100.0,132.85,132.81,0.1]
[1720418760420,100.0,132.82,132.81,0.1]
[1720418760616,16.5866,132.89,132.81,0.1]
[1720418760617,100.0,132.84,132.81,0.1]
[1720418760821,100.0,132.82,132.81,0.1]
[1720418762420,100.0,132.84,132.81,0.1]
[1720418762806,100.0,132.84,132.81,20.1]
[1720418763610,100.0,132.82,132.81,0.1]
[1720418766732,115.4445,132.82,132.81,0.1]
[1720418766909,115.6145,132.82,132.81,0.1]
[1720418770718,100.0,132.82,132.81,0.1]
[1720418773626,100.17,132.82,132.81,0.1]
[1720418773828,120.17,132.82,132.81,0.1]
[1720418774031,100.17,132.82,132.81,0.1]
[1720418774335,100.0,132.82,132.81,0.1]
[1720418776413,100.17,132.82,132.81,0.1]
[1720418779746,100.17,132.82,132.76,0.04463262]
[1720418779747,100.0,132.77,132.76,0.04463262]
[1720418780748,100.17,132.77,132.76,0.04463262]
[1720418781534,100.0,132.77,132.76,0.04463262]
[1720418782826,100.0,132.81,132.76,0.04463262]
[1720418783039,100.0,132.81,132.76,20.04463262]
[1720418783458,100.0,132.81,132.76,26.26553262]
[1720418783747,100.0,132.81,132.76,64.45553262]
[1720418784043,100.0,132.81,132.77,0.17]
[1720418784246,100.0,132.79,132.78,38.19]
[1720418784418,100.0,132.77,132.76,6.26553262]
[1720418784838,100.0,132.77,132.76,0.04463262]
[1720418790558,116.5705,132.77,132.76,0.04463262]
[1720418790850,136.7405,132.77,132.76,0.04463262]
[1720418792348,100.0,132.77,132.76,0.04463262]
[1720418793645,100.17,132.77,132.76,0.04463262]
[1720418794229,120.17,132.77,132.76,0.04463262]
[1720418795635,126.8177,132.77,132.76,0.04463262]
[1720418796457,126.8177,132.77,132.73,0.20034653]
[1720418796458,100.0,132.74,132.73,0.20034653]
[1720418796842,100.0,132.72,132.71,0.1]
[1720418797047,100.0,132.65,132.63,5.6524]
[1720418797454,100.0,132.65,132.64,0.20058417]
[1720418797937,100.0,132.63,132.62,1.05707427]
[1720418798259,100.0,132.65,132.62,1.05707427]
[1720418798447,100.0,132.65,132.62,0.8564901]
[1720418798852,100.0,132.63,132.62,0.8564901]
[1720418804040,100.0,132.65,132.62,0.8564901]
[1720418804241,100.0,132.67,132.62,0.8564901]
[1720418804867,100.0,132.65,132.62,0.8564901]
[1720418805033,100.0,132.63,132.62,0.8564901]
[1720418805238,100.0,132.65,132.62,0.8564901]
[1720418805574,100.0,132.65,132.63,0.20068624]
[1720418806258,100.0,132.63,132.62,0.8564901]
[1720418807775,100.0,132.67,132.62,0.8564901]
[1720418808068,100.0,132.63,132.62,0.8564901]
[1720418808636,100.0,132.65,132.62,0.8564901]
[1720418808858,100.0,132.68,132.62,23.9585901]
[1720418809261,100.0,132.68,132.63,0.20069759]
[1720418809565,100.0,132.65,132.63,0.20069759]
[1720418810151,100.0,132.65,132.62,17.5224901]
[1720418810667,100.0,132.63,132.62,0.8564901]
[1720418811779,100.0,132.65,132.62,0.8564901]
[1720418813150,100.0,132.63,132.62,0.8564901]
[1720418813487,6.1068,132.69,132.62,0.8564901]
[1720418813488,100.0,132.65,132.62,0.8564901]
[1720418814804,100.0,132.71,132.64,6.3655]
[1720418814974,100.0,132.73,132.66,53.8671]
[1720418815181,100.0,132.73,132.67,20.17]
[1720418815480,100.0,132.75,132.68,38.19]
[1720418815794,100.0,132.75,132.69,20.17]
[1720418816175,100.0,132.75,132.69,20.37069759]
[1720418816375,6.1573,132.8,132.69,20.37069759]
[1720418816376,100.0,132.73,132.7,0.20069759]
[1720418816787,100.0,132.75,132.7,20.20069759]
[1720418816972,100.0,132.73,132.7,20.0]
[1720418817172,100.0,132.73,132.71,0.20069759]
[1720418818000,100.0,132.75,132.68,0.20069759]
[1720418818206,100.0,132.75,132.69,0.17]
[1720418818608,100.0,132.77,132.69,0.17]
[1720418818969,6.1573,132.8,132.69,0.17]
[1720418818970,100.0,132.75,132.69,0.17]
[1720418819178,100.0,132.7,132.68,0.20069759]
[1720418819676,100.0,132.7,132.67,0.20069759]
[1720418820073,100.0,132.73,132.67,0.20069759]
[1720418820273,100.0,132.7,132.66,15.6771]
[1720418820497,100.0,132.72,132.67,0.20069759]
[1720418820704,100.0,132.72,132.67,20.20069759]
[1720418820905,6.1573,132.8,132.67,0.20069759]
[1720418820906,100.0,132.69,132.67,0.20069759]
[1720418821410,100.0,132.69,132.65,0.20069759]
[1720418821571,100.0,132.71,132.65,0.20069759]
[1720418822078,100.0,132.75,132.65,390.40069759]
[1720418822285,15.3124,132.79,132.66,20.17]
[1720418822286,100.0,132.73,132.66,20.17]
[1720418822697,100.0,132.73,132.67,0.20069759]
[1720418822904,100.0,132.73,132.68,0.17]
[1720418823613,100.0,132.71,132.67,0.20069759]
[1720418823791,100.0,132.69,132.67,0.20069759]
[1720418824481,100.0,132.71,132.65,390.40069759]
[1720418824698,100.0,132.74,132.65,390.40069759]
[1720418825004,15.3124,132.79,132.67,49.3919]
[1720418825005,100.0,132.79,132.67,49.3919]
[1720418825213,100.0,132.79,132.68,20.0]
[1720418825376,100.0,132.79,132.69,0.17]
[1720418826718,100.0,132.77,132.69,0.17]
[1720418827315,100.0,132.81,132.69,0.17]
[1720418827495,100.0,132.81,132.7,22.7239]
[1720418827686,100.0,132.81,132.71,20.17]
[1720418827880,100.0,132.81,132.71,20.37069759]
[1720418829007,100.0,132.77,132.71,20.20069759]
[1720418829678,100.0,132.79,132.71,20.20069759]
[1720418829905,100.0,132.81,132.71,20.20069759]
[1720418830105,100.0,132.83,132.71,63.26069759]
[1720418830410,100.0,132.83,132.72,0.17]
[1720418830792,100.0,132.83,132.73,6.6237]
[1720418830992,100.0,132.83,132.74,20.17]
[1720418831693,100.0,132.85,132.75,58.9942]
[1720418831892,100.0,132.85,132.76,20.17]
[1720418832314,100.0,132.81,132.76,20.17]
[1720418832982,100.0,132.83,132.76,20.17]
[1720418836105,22.0649,132.91,132.75,15.9342]
[1720418836106,100.0,132.79,132.75,15.9342]
[1720418836311,15.0,132.89,132.73,6.82439759]
[1720418836312,100.0,132.77,132.73,6.82439759]
[1720418836499,100.0,132.77,132.73,6.6237]
[1720418836814,100.0,132.79,132.73,6.6237]
[1720418837707,100.0,132.79,132.74,20.17]
[1720418838008,100.0,132.77,132.74,20.17]
[1720418839082,100.0,132.8,132.75,38.25]
[1720418839298,100.0,132.8,132.76,20.17]
[1720418839678,100.0,132.78,132.76,20.0]
[1720418839909,100.0,132.8,132.74,20.0]
[1720418840107,100.0,132.8,132.75,0.17]
[1720418841605,100.0,132.8,132.75,38.42]
[1720418841819,21.8456,132.87,132.77,38.25]
[1720418841820,100.0,132.82,132.77,38.25]
[1720418842110,100.0,132.82,132.78,20.17]
[1720418842820,100.0,132.84,132.78,20.17]
[1720418843616,100.0,132.86,132.79,38.25]
[1720418843802,100.0,132.86,132.8,26.5381]
[1720418844886,22.689,132.9,132.77,390.2]
[1720418844887,100.0,132.82,132.77,390.2]
[1720418845124,100.0,132.83,132.77,390.2]
[1720418845416,100.0,132.81,132.77,390.2]
[1720418846183,38.25,132.88,132.78,20.0]
[1720418846184,100.0,132.79,132.78,20.0]
[1720418846417,100.0,132.79,132.73,6.3716]
[1720418847690,100.0,132.76,132.72,0.20069759]
[1720418848917,100.0,132.8,132.72,6.13625746]
[1720418849111,100.0,132.8,132.72,0.20069759]
[1720418849289,100.0,132.8,132.73,0.17]
[1720418849497,100.0,132.78,132.73,0.17]
[1720418849818,100.0,132.78,132.72,20.20069759]
[1720418849989,100.0,132.78,132.72,0.20069759]
[1720418850185,100.0,132.76,132.72,0.20069759]
[1720418850402,15.9907,132.83,132.72,0.20069759]
[1720418850403,100.0,132.78,132.72,0.20069759]
[1720418850916,100.0,132.76,132.72,0.20069759]
[1720418851424,100.0,132.76,132.72,20.20069759]
[1720418853023,100.0,132.74,132.72,20.20069759]
[1720418853544,15.9907,132.83,132.72,20.20069759]
[1720418853545,100.0,132.81,132.72,20.20069759]
[1720418853730,115.9907,132.83,132.73,15.1188]
[1720418854032,100.0,132.81,132.74,20.0]
[1720418854333,100.0,132.79,132.74,20.0]
[1720418854624,100.0,132.79,132.75,0.17]
[1720418854808,100.0,132.81,132.75,0.17]
[1720418855198,100.0,132.83,132.75,0.17]
[1720418855929,100.0,132.83,132.76,6.3878]
[1720418856132,100.0,132.83,132.77,20.17]
[1720418856296,100.0,132.86,132.78,16.2505]
[1720418856495,100.0,132.9,132.78,16.2505]
[1720418856789,100.0,132.9,132.79,20.17]
[1720418857312,100.0,132.86,132.79,20.17]
[1720418857615,100.0,132.88,132.79,20.17]